{"text_format":"1","workbook":"xlsx","n_sheets":5,"sheets":["Les meg","Søknadsinfo","Aktivitetsplan","Budsjett","Utbetalingsplan"],"not_rendered":{"charts":0,"images":0,"macros":1,"external_links":0,"defined_names":2,"comments":0,"pivot_tables":0},"unopened":[],"bounds":{"document_bytes":16777216,"sheet_cells":100000,"rows_first":2000,"rows_last":500,"rows_between":2000,"halvings":0,"cell_chars":16384,"cell_head_chars":4096},"cells_cut":0,"cells_raw":0,"read":"whole","date_system":"1900"}

{"sheet":"Les meg","index":0,"n_rows":19,"n_cols":3,"rows_kept":19,"cut":false,"hidden":false,"merged":[[7,1,7,2],[12,1,12,2],[11,1,11,2],[6,1,6,2],[1,1,1,2],[8,1,8,2],[5,1,5,2]]}
[]
[null,"HANDLE – Budsjett og aktivitetsplan (mal)"]
[]
[null,"Slik fyller du ut"]
[]
[null,"1) Aktiver macroer i arket"]
[null,"2) Fyll ut fanen «Søknadsinfo» (kun lyseblå felter)."]
[null,"3) Fyll ut «Aktivitetsplan» med hovedaktiviteter (kun lyseblå felter). "]
[null,"4) Fyll ut kostnader i «Budsjett» (kun lyseblå felter). Summen av finansiering må være lik summen av kostnader."]
[]
[null,"MERK:"]
[null,"- Malen har innebygde summer, disse må ikke endres."]
[null,"- Ikke endre på formelceller. Hvis du trenger flere rader: aktiver makroer og trykk på \"Sett inn ny rad\"."]
[]
[]
[null,"Definisjoner"]
[null,"Begrep","Forklaring"]
[null,"Egenandel","All finansiering som ikke er HANDLE-midler, inkl. kontantbidrag, egeninnsats (timer), og andre tilskudd."]
[null,"Egeninnsats (timer)","Verdien av arbeid som prosjektpartnerne gjør selv. Oppgis i budsjettet som en kostnad og samtidig som finansiering."]

{"sheet":"Søknadsinfo","index":1,"n_rows":12,"n_cols":4,"rows_kept":12,"cut":false,"hidden":false,"merged":[[2,1,2,2],[1,1,1,2]]}
[]
[null,"Søknadsinfo"]
[null,"Fyll ut alle lyseblå felter."]
[null,"Felt","Svar"]
[null,"Prosjektnavn","Prosjekt"]
[null,"Søkerorganisasjon (juridisk navn)","Selskap AS"]
[null,"Org.nr.",123456789]
[null,"Prosjektleder (navn)","Kari Nordmann"]
[null,"E-post prosjektleder","kari.nordmann@selskap.no"]
[null,"Telefon prosjektleder",4712345678]
[null,"Prosjektperiode start (dato)","1900-01-01"]
[null,"Prosjektperiode slutt (dato)","1900-01-01",{"$f":"YEAR(C12)","v":1900}]

{"sheet":"Aktivitetsplan","index":2,"n_rows":8,"n_cols":8,"rows_kept":8,"cut":false,"hidden":false,"merged":[[2,1,2,7]]}
[]
[null,{"$f":"\"Aktivitetsplan \"&Søknadsinfo!C5&\" (milepæler, leveranser og effekt)\"","v":"Aktivitetsplan Prosjekt (milepæler, leveranser og effekt)"}]
[null,"Fyll ut prosjektets hovedaktiviteter."]
[null,"Aktivitet","Startdato","Sluttdato","Leveranse","Ansvarlig partner","Bidragspartner(e)","Kommentar"]
[null,"00_Eksempel Oppstart"]
[null,"01_Eksempel Første test"]
[null,"02_Eksempel Andre test"]
[null,"03_Eksempel Sluttfase"]

{"sheet":"Budsjett","index":3,"n_rows":22,"n_cols":30,"rows_kept":22,"cut":false,"hidden":false,"merged":[]}
[]
[null,{"$f":"\"Budsjett \"&Søknadsinfo!C5","v":"Budsjett Prosjekt"}]
[null,"Beløp i NOK (hele kroner). Fyll kun ut lyseblå felter. Slett eksempeltekst i rødt. Summer og kontroller beregnes automatisk."]
[null,"KOSTNADER",null,null,null,null,2027,null,null,null,null,2028,null,null,null,null,2029,null,null,null,null,2030,null,null,null,null,"Sum kostnader","HANDLE","Annen finansiering","Egeninsats"]
[null,"Aktivitet (beskrivelse) – bruk samme navn/ID som i aktivitetsplanen","Finansieringskilde (velg)","Kostnadssted (Partner)","Kommentar",null,"Q1","Q2","Q3","Q4",null,"Q1","Q2","Q3","Q4",null,"Q1","Q2","Q3","Q4",null,"Q1","Q2","Q3","Q4"]
[null,"00_Oppstart","HANDLE",null,null,null,10000,null,null,null,null,null,null,null,null,null,null,null,null,null,null,null,null,null,null,null,{"$f":"SUM(G6:Y6)","v":10000},{"$f":"IF(SUMIF($C6,\"HANDLE\",$AA6)=0,\"\",SUMIF($C6,\"HANDLE\",$AA6))","v":10000},{"$f":"IF(SUMIF($C6,\"Annen finansiering\",$AA6)=0,\"\",SUMIF($C6,\"Annen finansiering\",$AA6))","v":""},{"$f":"IF(SUMIF($C6,\"Egeninnsats\",$AA6)=0,\"\",SUMIF($C6,\"Egeninnsats\",$AA6))","v":""}]
[null,null,null,null,null,null,null,null,null,null,null,null,null,null,null,null,null,null,null,null,null,null,null,null,null,null,{"$f":"SUM(G7:Y7)","v":0},{"$f":"IF(SUMIF($C7,\"HANDLE\",$AA7)=0,\"\",SUMIF($C7,\"HANDLE\",$AA7))","v":""},{"$f":"IF(SUMIF($C7,\"Annen finansiering\",$AA7)=0,\"\",SUMIF($C7,\"Annen finansiering\",$AA7))","v":""},{"$f":"IF(SUMIF($C7,\"Egeninnsats\",$AA7)=0,\"\",SUMIF($C7,\"Egeninnsats\",$AA7))","v":""}]
[null,null,null,null,null,null,null,null,null,null,null,null,null,null,null,null,null,null,null,null,null,null,null,null,null,null,{"$f":"SUM(G8:Y8)","v":0},"","",""]
[null,null,null,null,null,null,null,null,null,null,null,null,null,null,null,null,null,null,null,null,null,null,null,null,null,null,0,"","",""]
[null,null,null,null,null,null,null,null,null,null,null,null,null,null,null,null,null,null,null,null,null,null,null,null,null,null,{"$f":"SUM(G10:Y10)","v":0},"","",""]
[null,null,null,null,null,null,null,null,null,null,null,null,null,null,null,null,null,null,null,null,null,null,null,null,null,null,0,"","",""]
[null,null,null,null,null,null,null,null,null,null,null,null,null,null,null,null,null,null,null,null,null,null,null,null,null,null,0,"","",""]
[null,null,null,null,null,null,null,null,null,null,null,null,null,null,null,null,null,null,null,null,null,null,null,null,null,null,{"$f":"SUM(G13:Y13)","v":0},"","",""]
[null,null,null,null,null,null,null,null,null,null,null,null,null,null,null,null,null,null,null,null,null,null,null,null,null,null,0,"","",""]
[null,"SUM",null,null,null,null,{"$f":"SUM(G6:G14)","v":10000},{"$f":"SUM(H6:H14)","v":0},{"$f":"SUM(I6:I14)","v":0},{"$f":"SUM(J6:J14)","v":0},null,{"$f":"SUM(L6:L14)","v":0},{"$f":"SUM(M6:M14)","v":0},{"$f":"SUM(N6:N14)","v":0},{"$f":"SUM(O6:O14)","v":0},null,{"$f":"SUM(Q6:Q14)","v":0},{"$f":"SUM(R6:R14)","v":0},{"$f":"SUM(S6:S14)","v":0},{"$f":"SUM(T6:T14)","v":0},null,{"$f":"SUM(V6:V14)","v":0},{"$f":"SUM(W6:W14)","v":0},{"$f":"SUM(X6:X14)","v":0},{"$f":"SUM(Y6:Y14)","v":0},null,{"$f":"SUM(AA6:AA14)","v":10000},{"$f":"SUM(AB6:AB14)","v":10000},{"$f":"SUM(AC6:AC14)","v":0},{"$f":"SUM(AD6:AD14)","v":0}]
[]
[null,"FINANSIERING (TOTALT)"]
[null,"Kilde","Beløp (NOK)","Kommentar"]
[null,"HANDLE (søkt fra fondet)",{"$f":"AB15","v":10000}]
[null,"Annen finansiering",{"$f":"AC15","v":0}]
[null,"Egeninnsats",{"$f":"AD15","v":0}]
[null,"Egenandel (%)",{"$f":"IFERROR(C21/(C19+C20+C21),0)","v":0}]

{"sheet":"Utbetalingsplan","index":4,"n_rows":12,"n_cols":5,"rows_kept":12,"cut":false,"hidden":false,"merged":[[2,1,2,4],[9,4,10,4],[7,4,8,4],[5,4,6,4],[5,3,6,3],[7,3,8,3],[9,3,10,3]]}
[]
[null,{"$f":"\"Utbetalingsplan for \"&Søknadsinfo!C5","v":"Utbetalingsplan for Prosjekt"}]
[null,"Tildelte midler utbetales per budsjettår med 50 % forskuddsvis ved årets start og \n50 % etterskuddsvis ved godkjent årsrapport/sluttrapport; samtidig utbetales 50 % forskuddsvis av påfølgende års budsjett ved godkjent årsrapport."]
[null,"Kostnadsår","Kostnad (delt på 2)","Utbetalingsår","Utbetaling"]
[null,2027,{"$f":"SUMIF(Budsjett!$C6:$C14,\"HANDLE\",Budsjett!$G$6:$J14)/2","v":5000},2027,{"$f":"SUMIF(Budsjett!$C6:$C14,\"HANDLE\",Budsjett!$G$6:$J14)/2","v":5000}]
[null,2027,{"$f":"SUMIF(Budsjett!$C6:$C14,\"HANDLE\",Budsjett!$G$6:$J14)/2","v":5000},2028,{"$f":"SUMIF(Budsjett!$C6:$C14,\"HANDLE\",Budsjett!$G$6:$J14)/2+SUMIF(Budsjett!$C6:$C14,\"HANDLE\",Budsjett!$L$6:$O14)/2","v":5000}]
[null,2028,{"$f":"SUMIF(Budsjett!$C6:$C14,\"HANDLE\",Budsjett!$L$6:$O14)/2","v":0}]
[null,2028,{"$f":"SUMIF(Budsjett!$C6:$C14,\"HANDLE\",Budsjett!$Q$6:$T14)/2","v":0},2029,{"$f":"SUMIF(Budsjett!$C6:$C14,\"HANDLE\",Budsjett!$Q$6:$T14)/2+SUMIF(Budsjett!$C6:$C14,\"HANDLE\",Budsjett!$Q$6:$T14)/2","v":0}]
[null,2029,{"$f":"SUMIF(Budsjett!$C6:$C14,\"HANDLE\",Budsjett!$Q$6:$T14)/2","v":0}]
[null,2029,{"$f":"SUMIF(Budsjett!$C6:$C14,\"HANDLE\",Budsjett!$Q$6:$T14)/2","v":0},2030,{"$f":"SUMIF(Budsjett!$C6:$C14,\"HANDLE\",Budsjett!$Q$6:$T14)/2+SUMIF(Budsjett!$C6:$C14,\"HANDLE\",Budsjett!$V$6:$Y14)/2","v":0}]
[null,2030,{"$f":"SUMIF(Budsjett!$C6:$C14,\"HANDLE\",Budsjett!$V$6:$Y14)/2","v":0}]
[null,2030,{"$f":"SUMIF(Budsjett!$C7:$C15,\"HANDLE\",Budsjett!$V$6:$Y15)/2","v":0},2031,{"$f":"C12","v":0}]